bitfinex-derivatives/quotes_BTCF0:USTF0_20250209
["timestamp","ask_amount","ask_price","bid_price","bid_amount"]
[1739083829931,0.00215465,97005.0,97004.0,0.5809255]
[1739083834532,0.00215465,97005.0,97004.0,0.2201255]
[1739083834732,0.00215465,97005.0,97004.0,0.5809255]
[1739083838930,0.2060604,97035.0,97008.0,0.0515292]
[1739083839234,0.47159436,97038.0,97030.0,0.2060703]
[1739083839436,0.47159436,97038.0,97037.0,0.2060555]
[1739083839437,0.11079436,97038.0,97037.0,0.2060555]
[1739083839637,0.10987436,97038.0,97037.0,0.2060555]
[1739083841945,0.11287436,97038.0,97037.0,0.2060555]
[1739083842937,0.11487436,97038.0,97037.0,0.2060555]
[1739083843943,0.3608,97046.0,97037.0,0.2060555]
[1739083843944,0.00088001,97064.0,97037.0,1.0216]
[1739083844133,0.0328,97072.0,97062.0,0.2060024]
[1739083844334,0.0328,97072.0,97069.0,0.2059875]
[1739083844933,0.0328,97072.0,97069.0,0.2723075]
[1739083845232,0.0328,97072.0,97054.0,0.3608]
[1739083845233,0.0328,97072.0,97060.0,0.00015456]
[1739083845728,0.0328,97072.0,97068.0,0.205989]
[1739083846335,0.00254624,97070.0,97068.0,0.205989]
[1739083847043,0.00354624,97070.0,97069.0,0.008]
[1739083847839,0.00354624,97070.0,97068.0,0.221989]
[1739083848539,0.00254624,97070.0,97068.0,0.212989]
[1739083848744,0.00254624,97070.0,97069.0,0.009]
[1739083848943,0.002,97070.0,97069.0,0.016]
[1739083849442,0.002,97070.0,97069.0,0.009]
[1739083849945,0.001,97070.0,97069.0,0.009]
[1739083850144,0.002,97070.0,97069.0,0.016]
[1739083850840,0.002,97070.0,97069.0,0.007]
[1739083851645,0.002,97070.0,97069.0,0.015]
[1739083867562,0.002,97070.0,97060.0,0.00015456]
[1739083867563,0.2060045,97061.0,97060.0,0.00015456]
[1739083867766,0.5668045,97061.0,97060.0,0.00015456]
[1739083869466,0.5678045,97061.0,97060.0,0.00815456]
[1739083869869,0.5688045,97061.0,97060.0,0.00915456]
[1739083870263,0.5678045,97061.0,97060.0,0.00115456]
[1739083870566,0.5688045,97061.0,97060.0,0.00715456]
[1739083870867,0.5678045,97061.0,97060.0,0.00115456]
[1739083871067,0.5688045,97061.0,97060.0,0.00315456]
[1739083871280,0.5678045,97061.0,97060.0,0.00215456]
[1739083871473,0.5688045,97061.0,97060.0,0.00215456]
[1739083872374,0.5688045,97061.0,97060.0,0.00015456]
[1739083872663,0.5688045,97061.0,97060.0,0.00615456]
[1739083873072,0.5688045,97061.0,97060.0,0.00715456]
[1739083874365,0.57893905,97061.0,97060.0,0.00715456]
[1739083875266,0.3628,97061.0,97060.0,0.21316116]
[1739083876370,0.002,97061.0,97060.0,0.21316116]
[1739083879473,0.002,97061.0,97060.0,0.22360213]
[1739083910798,0.002,97061.0,97060.0,0.58440213]
[1739083913188,0.00204494,97061.0,97060.0,0.58440213]
[1739083913394,0.00204494,97061.0,97060.0,0.64024116]
[1739083916696,0.00204494,97061.0,97060.0,0.57396116]
[1739083916897,0.00204494,97061.0,97060.0,0.64024116]
[1739083918300,0.00204494,97061.0,97060.0,0.57396116]
[1739083918603,0.00204494,97061.0,97060.0,0.21316116]
[1739083918792,0.00204494,97061.0,97060.0,0.57396116]
[1739083919502,0.00204494,97061.0,97060.0,0.21316116]
[1739083919700,0.00204494,97061.0,97060.0,0.57396116]
[1739083926903,0.0937,97074.0,97060.0,0.36795456]
[1739083927100,0.0937,97074.0,97073.0,0.566779]
[1739083929004,0.0937,97074.0,97073.0,0.567779]
[1739083929401,0.2059396,97092.0,97088.0,0.2059472]
[1739083929606,0.2387396,97092.0,97088.0,0.2059472]
[1739083930705,0.0633,97091.0,97088.0,0.2059472]
[1739083931099,0.3648,97089.0,97088.0,0.2059472]
[1739083931807,0.01,97089.0,97088.0,0.2059472]
[1739083936810,0.01,97089.0,97088.0,0.21620423]
[1739083937699,0.01,97089.0,97088.0,0.2059472]
[1739083942714,0.3608,97099.0,97098.0,0.205926]
[1739083943016,0.0924,97106.0,97092.0,0.3608]
[1739083943212,0.27768221,97118.0,97115.0,0.20589]
[1739083943413,0.3608,97117.0,97115.0,0.20589]
[1739083943611,0.27768221,97118.0,97115.0,0.20589]
[1739083943809,0.3608,97117.0,97115.0,0.20589]
[1739083944806,0.3608,97117.0,97115.0,0.20689]
[1739083945414,0.3668,97117.0,97115.0,0.20689]
[1739083945719,0.3758,97117.0,97115.0,0.20689]
[1739083947720,0.5816862,97117.0,97115.0,0.001]
[1739083951912,0.2573643,97115.0,97096.0,0.205929]
[1739083952113,0.3608,97098.0,97097.0,0.2059281]
[1739083953519,0.3608,97098.0,97097.0,0.2069281]
[1739083953728,0.3608,97098.0,97097.0,0.001]
[1739083953924,0.37130217,97098.0,97097.0,0.001]
[1739083954516,0.37130217,97098.0,97097.0,0.002]
[1739083958229,0.01050217,97098.0,97097.0,0.002]
[1739083958426,0.3608,97098.0,97097.0,0.002]
[1739083967124,0.566726,97098.0,97097.0,0.002]
[1739083970635,0.205926,97098.0,97097.0,0.002]
[1739083975747,0.566726,97098.0,97097.0,0.002]
[1739083988542,0.205926,97098.0,97097.0,0.002]
[1739083991251,0.566726,97098.0,97097.0,0.002]
[1739083999348,0.205926,97098.0,97097.0,0.002]
[1739084034375,0.2059133,97104.0,97100.0,0.2059209]
[1739084035580,0.2059157,97103.0,97100.0,0.2059209]
[1739084036670,0.2069157,97103.0,97100.0,0.2059209]
[1739084037283,0.2069157,97103.0,97090.0,0.24656934]
[1739084037477,0.2069157,97103.0,97100.0,0.2059213]
[1739084037677,0.2059185,97102.0,97100.0,0.2059213]
[1739084039087,0.2069185,97102.0,97100.0,0.2059213]
[1739084039487,0.2079185,97102.0,97100.0,0.2059213]
[1739084043991,0.2079185,97102.0,97101.0,0.2059196]
[1739084045186,0.2069185,97102.0,97101.0,0.2059196]
[1739084045383,0.2079185,97102.0,97101.0,0.2059196]
[1739084047394,0.002,97102.0,97101.0,0.2059196]
[1739084049997,0.2079175,97102.0,97101.0,0.2059196]
[1739084083221,0.205926,97099.0,97096.0,0.5667295]
[1739084083518,0.205926,97099.0,97097.0,0.205928]
[1739084085617,0.205926,97099.0,97098.0,0.205926]
[1739084087921,0.21608171,97099.0,97098.0,0.205926]
[1739084092912,0.205926,97099.0,97098.0,0.205926]
[1739084118031,0.205926,97099.0,97098.0,0.207926]
[1739084118233,0.205926,97099.0,97098.0,0.209926]
[1739084124443,0.2059131,97105.0,97104.0,0.2059133]
[1739084125041,0.04815881,97114.0,97113.0,0.2058887]
[1739084125042,0.2058936,97114.0,97113.0,0.2058887]
[1739084125344,0.0628,97118.0,97117.0,0.2058857]
[1739084125731,0.2686836,97118.0,97117.0,0.2058857]
[1739084127538,0.2746836,97118.0,97117.0,0.2068857]
[1739084127748,0.006,97118.0,97117.0,0.2068857]
[1739084128048,0.001,97118.0,97117.0,0.2058857]
[1739084153457,0.2068836,97118.0,97117.0,0.2058857]
[1739084162864,0.56754111,97129.0,97113.0,0.37179599]
[1739084163065,0.3608,97129.0,97128.0,0.2058625]
[1739084163259,0.2058474,97136.0,97134.0,0.205849]
[1739084163656,0.2058474,97136.0,97126.0,0.04815881]
[1739084163657,0.0322,97140.0,97127.0,0.2058637]
[1739084163862,0.08035881,97140.0,97137.0,0.2058426]
[1739084164062,0.0322,97140.0,97137.0,0.2058426]
[1739084164563,0.2380383,97140.0,97137.0,0.2058426]
[1739084165363,0.2430383,97140.0,97137.0,0.2058426]
[1739084165570,0.2490383,97140.0,97137.0,0.2068426]
[1739084168463,0.3608,97138.0,97137.0,0.2068426]
[1739084169675,0.3668,97138.0,97137.0,0.2068426]
[1739084170869,0.3708,97138.0,97137.0,0.2068426]
[1739084173880,0.01,97138.0,97137.0,0.2068426]
[1739084182176,0.2158413,97138.0,97137.0,0.2068426]
[1739084185683,0.5766413,97138.0,97137.0,0.001]
[1739084202597,0.2158413,97138.0,97137.0,0.001]
[1739084202791,0.5766413,97138.0,97137.0,0.001]
[1739084209892,0.2058642,97128.0,97126.0,0.2058662]
[1739084211201,0.2068642,97128.0,97126.0,0.2058662]
[1739084211403,0.2078642,97128.0,97126.0,0.2058662]
[1739084213792,0.2058753,97122.0,97120.0,0.2058791]
[1739084213997,0.2058753,97122.0,97121.0,0.0308]
[1739084215200,0.2058753,97122.0,97121.0,0.0328]
[1739084217096,0.2058753,97122.0,97121.0,0.0348]
[1739084222500,0.01008811,97128.0,97121.0,0.0348]
[1739084222815,0.2058656,97127.0,97126.0,0.2058645]
[1739084226113,0.2068656,97127.0,97126.0,0.2058645]
[1739084231018,0.2058752,97122.0,97121.0,0.0308]
[1739084232119,0.2058752,97122.0,97121.0,0.0328]
[1739084232318,0.2058752,97122.0,97121.0,0.0348]
[1739084237417,0.2058752,97122.0,97121.0,0.004]
[1739084238128,0.21600907,97122.0,97121.0,0.004]
[1739084238625,0.2058879,97116.0,97115.0,0.18466934]
[1739084238819,0.5666879,97116.0,97115.0,0.18466934]
[1739084239822,0.5666879,97116.0,97114.0,0.18466934]
[1739084240018,0.0331,97115.0,97114.0,0.18466934]
[1739084241724,0.3939,97115.0,97114.0,0.18666934]
[1739084242119,0.3939,97115.0,97114.0,0.18866934]
[1739084243216,0.3939,97115.0,97114.0,0.004]
[1739084243413,0.3939,97115.0,97114.0,0.003]
[1739084243826,0.3939,97115.0,97114.0,0.002]
[1739084244019,0.3939,97115.0,97114.0,0.004]
[1739084244827,0.3939,97115.0,97114.0,0.003]
[1739084245226,0.0331,97115.0,97114.0,0.003]
[1739084245436,0.3939,97115.0,97114.0,0.003]
[1739084246123,0.3939,97115.0,97114.0,0.005]
[1739084247028,0.426,97115.0,97114.0,0.005]
[1739084250326,0.4579,97115.0,97114.0,0.005]
[1739084252119,0.2058964,97112.0,97111.0,0.00015447]
[1739084253421,0.5666964,97112.0,97111.0,0.00015447]
[1739084253825,0.5666964,97112.0,97111.0,0.00215447]
[1739084254429,0.5666964,97112.0,97111.0,0.00415447]
[1739084254930,0.5666964,97112.0,97111.0,0.00615447]
[1739084255733,0.5666964,97112.0,97097.0,0.00154467]
[1739084255734,0.3608,97112.0,97097.0,0.00154467]
[1739084255934,0.2059261,97098.0,97097.0,0.00154467]
[1739084257128,0.2069261,97098.0,97097.0,0.00854467]
[1739084257335,0.2069261,97098.0,97097.0,0.01054467]
[1739084258133,0.2079261,97098.0,97097.0,0.01154467]
[1739084260739,0.2382261,97098.0,97097.0,0.01154467]
[1739084261038,0.2993261,97098.0,97097.0,0.01154467]
[1739084261540,0.30981282,97098.0,97097.0,0.01154467]
[1739084262943,0.67061282,97098.0,97097.0,0.01154467]
[1739084263334,0.67061282,97098.0,97088.0,0.00015447]
[1739084263335,0.46468672,97098.0,97088.0,0.00015447]
[1739084263538,0.2059451,97089.0,97088.0,0.00015447]
[1739084264134,0.2059961,97065.0,97064.0,0.0935]
[1739084265548,0.2149961,97065.0,97064.0,0.0935]
[1739084266446,0.2239961,97065.0,97064.0,0.0935]
[1739084270241,0.2239961,97065.0,97064.0,0.2994982]
[1739084287568,0.2239961,97065.0,97064.0,0.2692982]
[1739084288068,0.2239961,97065.0,97064.0,0.2059982]
[1739084290060,0.018,97065.0,97060.0,0.3608]
[1739084290464,0.018,97065.0,97063.0,0.2059996]
[1739084292367,0.009,97065.0,97063.0,0.2059996]
[1739084292667,0.018,97065.0,97063.0,0.2059996]
[1739084293667,0.009,97065.0,97063.0,0.2059996]
[1739084293964,0.018,97065.0,97063.0,0.2059996]
[1739084294463,0.018,97065.0,97060.0,0.3608]
[1739084294663,0.018,97065.0,97063.0,0.2059982]
[1739084295565,0.009,97065.0,97063.0,0.2059982]
[1739084295782,0.018,97065.0,97063.0,0.2059982]
[1739084298668,0.018,97065.0,97064.0,0.3608]
[1739084299764,0.009,97065.0,97064.0,0.3608]
[1739084299961,0.018,97065.0,97064.0,0.3608]
[1739084311570,0.2239961,97065.0,97064.0,0.3608]
[1739084324085,0.2239961,97065.0,97064.0,0.18507673]
[1739084324285,0.2239961,97065.0,97064.0,0.54587673]
[1739084326185,0.2239961,97065.0,97064.0,0.75187493]
[1739084326882,0.2239961,97065.0,97064.0,0.5667982]
[1739084332195,0.018,97065.0,97064.0,0.5667982]
[1739084333093,0.018,97065.0,97064.0,0.2059982]
[1739084333294,0.018,97065.0,97064.0,0.5667982]
[1739084337400,0.018,97065.0,97064.0,0.2059982]
[1739084337593,0.018,97065.0,97064.0,0.5667982]
[1739084339597,0.018,97065.0,97064.0,0.75189812]
[1739084342302,0.018,97065.0,97064.0,0.39109812]
[1739084342701,0.018,97065.0,97064.0,0.75189812]
[1739084343095,0.018,97065.0,97064.0,0.5667982]
[1739084343305,0.018,97065.0,97064.0,0.2059982]
[1739084343606,0.018,97065.0,97064.0,0.5667982]
[1739084349713,0.018,97065.0,97064.0,0.2059982]
[1739084349912,0.018,97065.0,97064.0,0.5667982]
[1739084356611,0.018,97065.0,97064.0,0.2059982]
[1739084356809,0.018,97065.0,97064.0,0.5667982]
[1739084359716,0.018,97065.0,97064.0,0.75182158]
[1739084363015,0.018,97065.0,97064.0,0.5667982]
[1739084365611,0.00015447,97074.0,97064.0,0.42696]
[1739084365817,0.00015447,97074.0,97073.0,0.5667791]
[1739084366824,0.00915447,97074.0,97073.0,0.5667791]
[1739084367317,0.2059814,97072.0,97070.0,0.2059848]
[1739084368113,0.01815447,97074.0,97064.0,0.67418107]
[1739084368319,0.06631328,97074.0,97072.0,0.5667793]
[1739084368520,0.01815447,97074.0,97072.0,0.5667793]
[1739084369215,0.00915447,97074.0,97072.0,0.5667793]
[1739084369420,0.00015447,97074.0,97072.0,0.5667793]
[1739084369924,0.00915447,97074.0,97072.0,0.5677793]
[1739084370525,0.21513147,97074.0,97072.0,0.5677793]
[1739084370720,0.21513147,97074.0,97072.0,0.5687793]
[1739084371029,0.22413147,97074.0,97072.0,0.5687793]
[1739084372223,0.22413147,97074.0,97072.0,0.3628]
[1739084372429,0.22413147,97074.0,97073.0,0.2059791]
[1739084373623,0.22413147,97074.0,97073.0,0.2069791]
[1739084373927,0.22413147,97074.0,97073.0,0.2079791]
[1739084375123,0.22413147,97074.0,97073.0,0.002]
[1739084381327,0.22413147,97074.0,97073.0,0.2079791]
[1739084385027,0.22413147,97074.0,97073.0,0.002]
[1739084425966,0.22413147,97074.0,97064.0,0.18491627]
[1739084425967,0.37895447,97074.0,97064.0,0.18491627]
[1739084426166,0.566796,97065.0,97064.0,0.18491627]
[1739084427054,0.566796,97065.0,97064.0,0.18591627]
[1739084427254,0.632956,97065.0,97064.0,0.18691627]
[1739084427670,0.641956,97065.0,97064.0,0.18691627]
[1739084427964,0.641956,97065.0,97064.0,0.002]
[1739084428172,0.2060044,97061.0,97060.0,0.24670107]
[1739084428869,0.2060151,97056.0,97049.0,0.00052]
[1739084429071,0.2060151,97056.0,97045.0,0.2060381]
[1739084430359,0.2130151,97056.0,97055.0,0.00115447]
[1739084430962,0.2220151,97056.0,97055.0,0.00215447]
[1739084433665,0.016,97056.0,97043.0,0.5668416]
[1739084433867,0.2060342,97047.0,97043.0,0.5674416]
[1739084434166,0.2060342,97047.0,97043.0,0.3614]
[1739084434363,0.2060342,97047.0,97043.0,0.3608]
[1739084435671,0.2100342,97047.0,97043.0,0.3608]
[1739084436777,0.2150342,97047.0,97043.0,0.3608]
[1739084440285,0.2150342,97047.0,97044.0,0.2060392]
[1739084443879,0.2150342,97047.0,97045.0,0.2060378]
[1739084446077,0.2150342,97047.0,97039.0,0.3608]
[1739084446383,0.2150342,97047.0,97041.0,0.206046]
[1739084447284,0.2150342,97047.0,97042.0,0.2060444]
[1739084448492,0.2150342,97047.0,97043.0,0.2060426]
[1739084450385,0.2060405,97044.0,97043.0,0.2060426]
[1739084451681,0.009,97047.0,97045.0,0.2060367]
[1739084451876,0.005,97047.0,97045.0,0.2060367]
[1739084452076,0.01054443,97048.0,97045.0,0.2060367]
[1739084452385,0.2060304,97049.0,97045.0,0.2060367]
[1739084452900,0.2090356,97047.0,97045.0,0.2060367]
[1739084453280,0.2130356,97047.0,97045.0,0.2060367]
[1739084453477,0.2100356,97047.0,97045.0,0.2060367]
[1739084454087,0.2100356,97047.0,97046.0,0.0309]
[1739084454993,0.2130356,97047.0,97046.0,0.0309]
[1739084455290,0.2140356,97047.0,97046.0,0.2369363]
[1739084455679,0.2150356,97047.0,97046.0,0.2369363]
[1739084458386,0.009,97047.0,97046.0,0.2369363]
[1739084484306,0.009,97047.0,97046.0,0.2060363]
[1739084548183,0.2060387,97045.0,97039.0,0.25723047]
[1739084548472,0.0627,97044.0,97042.0,0.2060442]
[1739084550172,0.0647,97044.0,97042.0,0.2060442]
[1739084552376,0.0677,97044.0,97042.0,0.2060442]
[1739084554077,0.0677,97044.0,97039.0,0.0105294]
[1739084554287,0.0677,97044.0,97043.0,0.2060426]
[1739084555482,0.0657,97044.0,97043.0,0.2060426]
[1739084556191,0.0627,97044.0,97043.0,0.2060426]
[1739084556391,0.0667,97044.0,97043.0,0.2060426]
[1739084556785,0.0657,97044.0,97043.0,0.2060426]
[1739084556986,0.0687,97044.0,97043.0,0.2060426]
[1739084575002,0.2747405,97044.0,97043.0,0.2060426]
[1739084587508,0.2433405,97044.0,97043.0,0.2060426]
[1739084587901,0.2120405,97044.0,97043.0,0.2060426]
[1739084589596,0.006,97044.0,97043.0,0.2060426]
[1739084590501,0.006,97044.0,97043.0,0.5668426]
[1739084596406,0.006,97044.0,97043.0,0.2060426]
[1739084596809,0.006,97044.0,97043.0,0.5668426]
[1739084597009,0.006,97044.0,97043.0,0.2060426]
[1739084597204,0.006,97044.0,97043.0,0.5668426]
[1739084598415,0.006,97044.0,97043.0,0.2060426]
[1739084599107,0.006,97044.0,97043.0,0.5668426]
[1739084599607,0.006,97044.0,97043.0,0.2060426]
[1739084599806,0.006,97044.0,97043.0,0.5668426]
[1739084606621,0.006,97044.0,97043.0,0.2060426]
[1739084607211,0.006,97044.0,97043.0,0.5668426]
[1739084607811,0.006,97044.0,97043.0,0.2060426]
[1739084608013,0.006,97044.0,97043.0,0.5668426]
[1739084608817,0.006,97044.0,97043.0,0.2060426]
[1739084609019,0.006,97044.0,97043.0,0.5668426]
[1739084617722,0.006,97044.0,97043.0,0.2060426]
[1739084618119,0.006,97044.0,97043.0,0.5668426]
[1739084621927,0.006,97044.0,97043.0,0.2060426]
[1739084622226,0.006,97044.0,97043.0,0.5668426]
[1739084622825,0.006,97044.0,97043.0,0.2060426]
[1739084623520,0.006,97044.0,97043.0,0.5668426]
[1739084624226,0.006,97044.0,97043.0,0.2060426]
[1739084624419,0.006,97044.0,97043.0,0.5668426]
[1739084624821,0.006,97044.0,97043.0,0.2060426]
[1739084625126,0.006,97044.0,97043.0,0.5668426]
[1739084629231,0.006,97044.0,97043.0,0.2060426]
[1739084629530,0.006,97044.0,97043.0,0.5668426]
[1739084632330,0.006,97044.0,97043.0,0.2060426]
[1739084632530,0.006,97044.0,97043.0,0.5668426]
[1739084633143,0.006,97044.0,97043.0,0.75207301]
[1739084634243,0.006,97044.0,97043.0,0.39127301]
[1739084634446,0.006,97044.0,97043.0,0.75207301]
[1739084635739,0.006,97044.0,97043.0,0.5668426]
[1739084635935,0.006,97044.0,97043.0,0.2060426]
[1739084636140,0.006,97044.0,97043.0,0.5668426]
[1739084646346,0.006,97044.0,97043.0,0.75207301]
[1739084650852,0.006,97044.0,97043.0,0.39127301]
[1739084651054,0.006,97044.0,97043.0,0.75207301]
[1739084655747,0.006,97044.0,97043.0,0.5668426]
[1739084657260,0.006,97044.0,97043.0,0.2060426]
[1739084657555,0.006,97044.0,97043.0,0.5668426]
[1739084659962,0.006,97044.0,97043.0,0.2060426]
[1739084660363,0.006,97044.0,97043.0,0.5668426]
[1739084662262,0.006,97044.0,97043.0,0.2060426]
[1739084662463,0.006,97044.0,97043.0,0.5668426]
[1739084663057,0.006,97044.0,97043.0,0.2060426]
[1739084663252,0.006,97044.0,97043.0,0.5668426]
[1739084665064,0.006,97044.0,97043.0,0.2060426]
[1739084665254,0.006,97044.0,97043.0,0.5668426]
[1739084665457,0.006,97044.0,97043.0,0.2060426]
[1739084665657,0.006,97044.0,97043.0,0.5668426]
[1739084667662,0.00015456,97053.0,97052.0,0.2060235]
[1739084667868,0.00015456,97053.0,97052.0,0.5668235]
[1739084668764,0.00715456,97053.0,97052.0,0.5678235]
[1739084669268,0.01315456,97053.0,97052.0,0.5688235]
[1739084672671,0.01315456,97053.0,97052.0,0.2080235]
[1739084672872,0.01315456,97053.0,97052.0,0.5688235]
[1739084673071,0.01315456,97053.0,97052.0,0.57918607]
[1739084678275,0.01315456,97053.0,97052.0,0.21838607]
[1739084678474,0.01315456,97053.0,97052.0,0.57918607]
[1739084680573,0.01315456,97053.0,97052.0,0.21838607]
[1739084680879,0.01315456,97053.0,97052.0,0.57918607]
[1739084683683,0.01315456,97053.0,97052.0,0.21838607]
[1739084683972,0.01315456,97053.0,97052.0,0.57918607]
[1739084686677,0.01315456,97053.0,97052.0,0.21838607]
[1739084686875,0.01315456,97053.0,97052.0,0.57918607]
[1739084691376,0.01315456,97053.0,97052.0,0.21838607]
[1739084691583,0.01315456,97053.0,97052.0,0.57918607]
[1739084695275,0.01315456,97053.0,97052.0,0.21838607]
[1739084695471,0.01315456,97053.0,97052.0,0.57918607]
[1739084700890,0.01315456,97053.0,97052.0,0.5688235]
[1739084701875,0.01315456,97053.0,97052.0,0.75405391]
[1739084705983,0.01315456,97053.0,97052.0,0.5688235]
[1739084709682,0.01315456,97053.0,97052.0,0.2080235]
[1739084722115,0.21917596,97053.0,97052.0,0.2080235]
[1739084726814,0.21917596,97053.0,97043.0,0.54655041]
[1739084726815,0.2060405,97044.0,97043.0,0.54655041]
[1739084727118,0.2060405,97044.0,97043.0,0.54603041]
[1739084727708,0.2060405,97044.0,97043.0,0.18523041]
[1739084728303,0.2080405,97044.0,97043.0,0.18523041]
[1739084728614,0.2110405,97044.0,97043.0,0.18523041]
[1739084728811,0.2060447,97042.0,97041.0,0.18523041]
[1739084730211,0.2080447,97042.0,97041.0,0.18523041]
[1739084731217,0.2100447,97042.0,97041.0,0.18523041]
[1739084732117,0.2060532,97038.0,97037.0,0.20620866]
[1739084734319,0.2060532,97038.0,97037.0,0.00015456]
[1739084764647,0.206066,97032.0,97031.0,0.00154575]
[1739084765741,0.206066,97032.0,97031.0,0.00454575]
[1739084766141,0.206066,97032.0,97031.0,0.00654575]
[1739084766742,0.206083,97024.0,97023.0,0.18523041]
[1739084766941,0.206083,97024.0,97023.0,0.19554825]
[1739084767135,0.206083,97024.0,97023.0,0.18523041]
[1739084768345,0.207083,97024.0,97023.0,0.19023041]
[1739084768550,0.208083,97024.0,97023.0,0.19523041]
[1739084769645,0.208083,97024.0,97023.0,0.01]
[1739084771352,0.21845743,97024.0,97023.0,0.01]
[1739084771851,0.208083,97024.0,97023.0,0.01]
[1739084772349,0.002,97024.0,97023.0,0.01]
[1739084773551,0.002,97024.0,97023.0,0.0414]
[1739084774844,0.002,97024.0,97023.0,0.0364]
[1739084775045,0.002,97024.0,97023.0,0.2374851]
[1739084775244,0.002,97024.0,97023.0,0.5982851]
[1739084782355,0.002,97024.0,97023.0,0.2374851]
[1739084782661,0.002,97024.0,97023.0,0.5982851]
[1739084793864,0.002,97024.0,97023.0,0.2374851]
[1739084794063,0.002,97024.0,97023.0,0.5982851]
[1739084794757,0.002,97024.0,97023.0,0.2374851]
[1739084794966,0.002,97024.0,97023.0,0.5982851]
[1739084800456,0.002,97024.0,97023.0,0.5668851]
[1739084809473,0.002,97024.0,97023.0,0.2060851]
[1739084831392,0.002,97024.0,97023.0,0.5668851]
[1739084836994,0.208083,97024.0,97023.0,0.5668851]
[1739084837194,0.002,97024.0,97022.0,0.00015456]
[1739084837399,0.2061,97016.0,97015.0,0.24672657]
[1739084838296,0.206117,97008.0,97007.0,0.206119]
[1739084839199,0.206117,97008.0,97006.0,0.00015456]
[1739084841194,0.215117,97008.0,97006.0,0.00015456]
[1739084841802,0.221117,97008.0,97006.0,0.00015456]
[1739084841991,0.212117,97008.0,97006.0,0.00015456]
[1739084842184,0.220117,97008.0,97006.0,0.00015456]
[1739084858801,0.2061191,97007.0,97006.0,0.00015456]
[1739084860106,0.2141191,97007.0,97006.0,0.00015456]
[1739084860911,0.2201191,97007.0,97006.0,0.00015456]
[1739084862309,0.2061318,97001.0,97000.0,0.1]
[1739084863409,0.2111318,97001.0,97000.0,0.1]
[1739084864114,0.2151318,97001.0,97000.0,0.1]
[1739084867614,0.206134,97000.0,96999.0,0.00154626]
[1739084870028,0.206134,97000.0,96999.0,0.20768236]
[1739084870220,0.210134,97000.0,96999.0,0.20768236]
[1739084870515,0.215134,97000.0,96999.0,0.20768236]
[1739084871118,0.009,97000.0,96999.0,0.20768236]
[1739084886930,0.009,97000.0,96999.0,0.2061361]
[1739084947982,0.19454781,97000.0,96999.0,0.2061361]
[1739084950279,0.40068181,97000.0,96999.0,0.2061361]
[1739084955486,0.215134,97000.0,96999.0,0.2061361]
[1739084970400,0.009,97000.0,96999.0,0.2061361]
[1739084971004,0.19455603,97000.0,96999.0,0.2061361]
[1739084973691,0.009,97000.0,96999.0,0.2061361]
[1739084978704,0.215134,97000.0,96999.0,0.2061361]
[1739084986212,0.40069003,97000.0,96999.0,0.2061361]
[1739084989714,0.215134,97000.0,96999.0,0.2061361]
[1739085005625,0.40074058,97000.0,96999.0,0.2061361]
[1739085012132,0.215134,97000.0,96999.0,0.2061361]
[1739085026640,0.40074058,97000.0,96999.0,0.2061361]
[1739085030944,0.215134,97000.0,96999.0,0.2061361]
[1739085033742,0.009,97000.0,96999.0,0.2061361]
[1739085045252,0.18560658,97004.0,97003.0,0.2061276]
[1739085045556,0.18560658,97007.0,97006.0,0.2061212]
[1739085048060,0.19060658,97007.0,97006.0,0.2061212]
[1739085048961,0.19660658,97007.0,97006.0,0.2071212]
[1739085049864,0.011,97007.0,97006.0,0.2071212]
[1739085050858,0.011,97007.0,97006.0,0.5679212]
[1739085067471,0.011,97007.0,97006.0,0.2071212]
[1739085067676,0.011,97007.0,97006.0,0.5679212]
[1739085068770,0.011,97007.0,97006.0,0.2071212]
[1739085068970,0.011,97007.0,97006.0,0.5679212]
[1739085081492,0.18560658,97018.0,97017.0,0.2060978]
[1739085081790,0.18560658,97018.0,97017.0,0.5668978]
[1739085082786,0.20360658,97018.0,97017.0,0.5678978]
[1739085083782,0.018,97018.0,97017.0,0.5678978]
[1739085086393,0.18560658,97025.0,97024.0,0.206083]
[1739085087087,0.00170144,97027.0,97026.0,0.2060787]
[1739085087287,0.00170144,97027.0,97026.0,0.2719187]
[1739085087787,0.00015464,97027.0,97026.0,0.2719187]
[1739085089983,0.00315464,97027.0,97026.0,0.2729187]
[1739085090184,0.00315464,97027.0,97026.0,0.2739187]
[1739085091296,0.0321,97041.0,97026.0,0.2739187]
[1739085091297,0.0321,97041.0,97026.0,0.06784]
[1739085091481,0.0321,97041.0,97040.0,0.566849]
[1739085093095,0.0331,97041.0,97040.0,0.575849]
[1739085093289,0.0341,97041.0,97040.0,0.584849]
[1739085095800,0.002,97041.0,97040.0,0.584849]
[1739085095998,0.0319,97043.0,97042.0,0.2060447]
[1739085097298,0.001,97043.0,97042.0,0.2240447]
[1739085097499,0.001,97043.0,97042.0,0.2898847]
[1739085102301,0.001,97043.0,97042.0,1.0114847]
[1739085117210,0.00015464,97050.0,97049.0,0.2060299]
[1739085118309,0.00015464,97050.0,97049.0,0.2140299]
[1739085118604,0.00015464,97050.0,97049.0,0.2230299]
[1739085119512,0.00015464,97050.0,97049.0,0.5838299]
[1739085130923,0.00154605,97064.0,97049.0,0.3778]
[1739085131106,0.095,97078.0,97077.0,0.2059704]
[1739085132407,0.095,97078.0,97077.0,0.2139704]
[1739085133019,0.00015456,97087.0,97077.0,0.01809373]
[1739085133219,0.00015456,97087.0,97086.0,0.2059513]
[1739085133412,0.00015456,97087.0,97086.0,0.2717913]
[1739085134523,0.00015456,97087.0,97086.0,0.2787913]
[1739085135024,0.00015456,97087.0,97086.0,0.6455913]
[1739085138015,0.00015456,97087.0,97086.0,0.5797513]
[1739085138217,0.00015456,97087.0,97086.0,0.6456713]
[1739085141717,0.0629,97094.0,97093.0,0.2059365]
[1739085143225,0.0629,97094.0,97093.0,0.2099365]
[1739085143624,0.0629,97094.0,97093.0,0.2139365]
[1739085144419,0.0629,97094.0,97093.0,0.2189365]
[1739085144816,0.0629,97094.0,97093.0,0.2149365]
[1739085145031,0.0629,97094.0,97093.0,0.2229365]
[1739085145821,0.1,97100.0,97093.0,0.017]
[1739085146125,0.1,97100.0,97098.0,0.2059259]
[1739085148418,0.1,97100.0,97098.0,0.2119259]